bitfinex-derivatives/quotes_ETHF0:USTF0_20250330
["timestamp","ask_amount","ask_price","bid_price","bid_amount"]
[1743340027549,0.0081947,1831.2,1831.1,1.09254]
[1743340027852,0.0081947,1831.2,1831.1,2.55264]
[1743340028153,0.0081947,1831.2,1831.1,3.27564]
[1743340029254,0.0081947,1831.2,1831.1,3.97994]
[1743340031747,0.6822,1831.6,1831.5,1.0923]
[1743340031949,0.6822,1831.6,1831.5,4.5903]
[1743340032252,1.4088,1831.7,1831.6,1.09224]
[1743340032443,1.4088,1831.7,1831.6,2.60214]
[1743340036952,1.0923,1831.5,1831.4,3.2078]
[1743340037157,1.0923,1831.5,1831.3,1.09241]
[1743340037158,4.30012,1831.5,1831.3,1.09241]
[1743340037459,2.9037,1831.4,1831.3,1.09241]
[1743340039549,2.9037,1831.4,1831.2,5.99824]
[1743340039753,1.376,1831.3,1831.2,4.58744]
[1743340041260,1.376,1831.3,1831.2,4.58748]
[1743340041462,1.376,1831.3,1831.2,1.09248]
[1743340041756,1.376,1831.3,1831.2,4.58748]
[1743340046058,1.376,1831.3,1831.2,5.98048]
[1743340047565,1.376,1831.3,1831.2,4.58748]
[1743340049352,1.376,1831.3,1831.2,6.09658]
[1743340067279,1.376,1831.3,1831.2,6.09558]
[1743340073290,21.40167332,1831.7,1831.6,1.09224]
[1743340073487,21.40167332,1831.7,1831.3,2.73106]
[1743340073488,22.11867332,1831.7,1831.5,1.09225]
[1743340073793,22.11867332,1831.7,1831.6,1.09224]
[1743340074593,24.19397332,1831.7,1831.6,1.09224]
[1743340074991,2.7923,1831.7,1831.6,1.09224]
[1743340075189,1.09232,1831.5,1831.3,1.39]
[1743340075390,0.6916,1831.4,1831.2,3.494]
[1743340075695,2.8207,1831.4,1831.2,6.06606]
[1743340075883,2.8207,1831.4,1831.2,4.9736]
[1743340076091,1.4042,1831.4,1831.3,1.09242]
[1743340080093,1.4042,1831.4,1831.3,2.46542]
[1743340083096,0.7126,1831.4,1831.3,2.46542]
[1743340083495,3.2078,1831.5,1831.4,1.09236]
[1743340083696,3.2078,1831.5,1831.4,2.49976]
[1743340083901,4.3001,1831.5,1831.4,1.4074]
[1743340084103,3.2078,1831.5,1831.3,2.47241]
[1743340084399,0.6921,1831.4,1831.3,2.47241]
[1743340087503,2.086,1831.4,1831.3,2.47241]
[1743340088102,2.086,1831.4,1831.2,1.09243]
[1743340088303,2.1453,1831.3,1831.2,6.08553]
[1743340092309,2.1453,1831.3,1831.2,4.9931]
[1743340092510,2.1453,1831.3,1831.2,6.08558]
[1743340122431,1.0926,1831.0,1830.9,0.00819469]
[1743340122627,4.3004,1831.0,1830.9,0.00819469]
[1743340123431,5.3213,1831.0,1830.9,0.00819469]
[1743340125428,6.4139,1831.0,1830.9,0.00819469]
[1743340127937,5.3213,1831.0,1830.9,0.00819469]
[1743340128436,5.3213,1831.0,1830.9,1.51769469]
[1743340128833,6.4139,1831.0,1830.9,1.51769469]
[1743340129436,5.3213,1831.0,1830.9,1.51769469]
[1743340131034,26.74830465,1831.0,1830.9,1.51769469]
[1743340131738,27.84090465,1831.0,1830.9,1.51769469]
[1743340131939,26.74830465,1831.0,1830.9,2.61035469]
[1743340132134,21.42700465,1831.0,1830.9,2.61035469]
[1743340132437,21.42700465,1831.0,1830.9,6.10435469]
[1743340133240,24.63480465,1831.2,1831.0,1.09256]
[1743340133441,1.4908,1831.1,1831.0,2.56916]
[1743340133649,24.63480465,1831.2,1831.1,1.09254]
[1743340133827,26.12560465,1831.2,1831.1,2.56914]
[1743340134033,24.63480465,1831.2,1831.1,2.56914]
[1743340134635,21.42700465,1831.2,1831.1,2.56914]
[1743340138134,21.42700465,1831.4,1831.3,1.09242]
[1743340138637,22.80730465,1831.4,1831.3,1.09242]
[1743340138834,22.80730465,1831.4,1831.3,2.50572]
[1743340143643,22.80730465,1831.4,1831.3,3.88812]
[1743340146249,22.80730465,1831.4,1831.3,2.50572]
[1743340147651,21.42700465,1831.4,1831.3,5.71352]
[1743340147853,17.72919935,1831.4,1831.3,8.21352]
[1743340149147,15.46329935,1831.4,1831.3,8.21352]
[1743340149451,12.73222298,1831.4,1831.3,8.21352]
[1743340149850,0.0081947,1831.8,1831.7,1.09218]
[1743340150152,0.0081947,1831.8,1831.7,4.58518]
[1743340150553,0.0081947,1831.8,1831.7,5.33348]
[1743340152248,0.0081947,1831.8,1831.7,6.74238]
[1743340156057,0.0081947,1831.8,1831.7,5.99408]
[1743340156256,1.4726947,1831.8,1831.7,5.99408]
[1743340157750,1.4726947,1831.8,1831.7,4.58518]
[1743340161256,1.09218,1831.7,1831.6,3.2078]
[1743340161451,1.7975,1831.7,1831.5,3.492]
[1743340161655,2.1302,1831.6,1831.5,3.492]
[1743340161856,5.338,1831.6,1831.4,1.09232]
[1743340162056,1.4172,1831.5,1831.4,1.09232]
[1743340172072,1.4172,1831.5,1831.4,3.23052]
[1743340172477,0.7053,1831.7,1831.6,1.09224]
[1743340172679,0.7053,1831.7,1831.6,4.58424]
[1743340173173,0.0081947,1831.8,1831.7,1.09218]
[1743340173874,1.3826947,1831.8,1831.7,1.09218]
[1743340176484,1.3826947,1831.8,1831.7,4.58418]
[1743340176684,1.3826947,1831.8,1831.7,3.492]
[1743340176883,1.3826947,1831.8,1831.7,4.58418]
[1743340182381,1.3826947,1831.8,1831.7,5.98208]
[1743340184777,1.3826947,1831.8,1831.7,6.71038]
[1743340188188,1.3826947,1831.8,1831.7,5.98208]
[1743340188389,1.3826947,1831.8,1831.7,4.58418]
[1743340190090,1.3826947,1831.8,1831.7,6.72658]
[1743340196086,0.0081947,1831.8,1831.7,6.72658]
[1743340197190,0.0081947,1831.8,1831.7,9.22658]
[1743340200695,0.0081947,1831.8,1831.7,5.73458]
[1743340200997,0.0081947,1831.8,1831.7,4.58218]
[1743340201296,0.7538947,1831.8,1831.7,4.58218]
[1743340202093,0.7538947,1831.8,1831.7,6.00338]
[1743340202286,0.7538947,1831.8,1831.7,4.58218]
[1743340205999,0.7538947,1831.8,1831.4,3.2078]
[1743340206204,2.175,1831.7,1831.5,4.58228]
[1743340206503,1.4452,1831.6,1831.5,4.58228]
[1743340206702,1.4452,1831.6,1831.5,1.09228]
[1743340208201,4.653,1831.6,1831.4,4.58233]
[1743340208602,1.4452,1831.5,1831.4,4.58233]
[1743340213102,0.7298,1831.7,1831.6,1.09224]
[1743340213410,0.7538947,1831.8,1831.7,1.09218]
[1743340213706,0.7538947,1831.8,1831.7,4.58318]
[1743340216606,0.0081947,1831.8,1831.7,5.97618]
[1743340218113,0.0081947,1831.8,1831.7,2.48518]
[1743340218312,0.0081947,1831.8,1831.7,4.58218]
[1743340218608,0.7600947,1831.8,1831.7,4.58218]
[1743340218997,3.2078,1832.3,1831.7,5.99]
[1743340219307,1.4666,1832.5,1832.4,1.09177]
[1743340219507,1.4666,1832.5,1832.4,3.493]
[1743340219910,1.4666,1832.5,1832.3,1.09182]
[1743340220111,1.5028,1832.4,1832.3,4.58682]
[1743340222108,0.7519,1832.4,1832.3,4.58682]
[1743340222304,0.7519,1832.4,1832.3,6.02872]
[1743340222506,0.7519,1832.4,1832.3,6.75532]
[1743340223619,2.1558,1832.5,1832.4,1.09177]
[1743340223802,0.6892,1832.5,1832.4,5.74147]
[1743340224215,0.0081947,1832.6,1832.4,5.74147]
[1743340224216,0.0081947,1832.6,1832.5,1.09171]
[1743340228213,0.0081947,1832.6,1832.5,4.58271]
[1743340231724,0.0081947,1832.6,1832.5,4.58071]
[1743340233418,0.0081947,1832.6,1832.5,5.95731]
[1743340236315,0.0081947,1832.6,1832.5,4.58071]
[1743340237414,1.3683947,1832.6,1832.5,4.58071]
[1743340239517,1.3683947,1832.6,1832.5,1.09171]
[1743340239713,1.3683947,1832.6,1832.5,4.58071]
[1743340241017,1.3683947,1832.6,1832.4,4.29953]
[1743340241219,0.7267,1832.5,1832.4,4.58073]
[1743340242217,0.7267,1832.5,1832.4,1.09173]
[1743340242424,0.7267,1832.5,1832.4,4.58073]
[1743340242820,3.29861,1832.5,1832.4,3.489]
[1743340243028,3.29861,1832.5,1832.4,4.58077]
[1743340243327,2.2069,1832.5,1832.4,4.58077]
[1743340244221,3.29861,1832.5,1832.4,1.09177]
[1743340244425,3.29861,1832.5,1832.3,1.09178]
[1743340244727,2.229,1832.4,1832.3,1.09178]
[1743340249331,2.229,1832.4,1832.3,4.29958]
[1743340252838,2.229,1832.4,1832.3,1.09178]
[1743340256736,2.229,1832.4,1832.2,3.4971947]
[1743340257045,1.4582,1832.3,1832.2,4.5890747]
[1743340257544,1.4582,1832.3,1832.2,1.1000747]
[1743340257734,1.4582,1832.3,1832.2,4.5890747]
[1743340259630,1.4582,1832.3,1832.2,1.1000747]
[1743340259835,1.4582,1832.3,1832.0,1.09197]
[1743340259836,2.55002,1832.3,1832.0,1.09197]
[1743340260044,1.77213,1832.2,1832.0,3.489]
[1743340260241,3.15303,1832.2,1832.0,4.581]
[1743340260444,2.0808,1832.1,1832.0,4.581]
[1743340263947,2.0808,1832.1,1832.0,1.092]
[1743340264545,2.0808,1832.1,1831.9,3.2159947]
[1743340264846,1.4297,1832.0,1831.9,1.1002547]
[1743340265047,2.5217,1832.0,1831.9,0.0081947]
[1743340265247,2.5217,1832.0,1831.9,1.1002547]
[1743340265543,1.4297,1832.0,1831.9,1.1002547]
[1743340268349,1.4297,1832.0,1831.9,0.0081947]
[1743340268738,1.4297,1832.0,1831.9,1.1002547]
[1743340270650,1.4297,1832.0,1831.9,2.5344547]
[1743340272152,1.4297,1832.0,1831.9,5.7422547]
[1743340272351,0.6802,1832.2,1832.1,1.09194]
[1743340272548,0.6802,1832.2,1832.1,4.58194]
[1743340273655,2.0582,1832.2,1832.1,5.95804]
[1743340277045,1.378,1832.2,1832.1,5.95804]
[1743340278150,3.9378,1832.5,1832.4,1.09177]
[1743340278356,5.415,1832.5,1832.4,4.58177]
[1743340278549,1.4772,1832.5,1832.4,4.58177]
[1743340278956,0.0081947,1832.6,1832.5,1.09171]
[1743340279154,0.0081947,1832.6,1832.5,3.19741]
[1743340279551,23.49545894,1833.0,1832.5,2.1057]
[1743340279753,1.4238,1832.8,1832.7,1.09159]
[1743340279953,1.4238,1832.8,1832.7,6.00639]
[1743340285057,2.51536,1832.8,1832.6,3.2078]
[1743340285354,1.4552,1832.7,1832.5,4.5807]
[1743340285557,3.97019,1832.7,1832.5,3.489]
[1743340285955,1.4234,1832.6,1832.5,3.489]
[1743340286148,1.4234,1832.6,1832.5,4.58071]
[1743340290265,1.4234,1832.6,1832.5,6.02941]
[1743340291263,1.4234,1832.6,1832.5,6.71261]
[1743340294468,1.4234,1832.6,1832.5,3.488]
[1743340295674,2.51505,1832.6,1832.5,3.488]
[1743340295857,2.51507,1832.6,1832.4,3.488]
[1743340296061,1.4538,1832.5,1832.4,3.488]
[1743340296267,2.1475,1832.5,1832.4,4.57977]
[1743340298463,2.1475,1832.5,1832.4,3.488]
[1743340298659,5.3553,1832.5,1832.0,4.6837]
[1743340298868,3.17529,1832.4,1832.1,3.488]
[1743340299070,1.3845,1832.3,1832.2,1.09188]
[1743340303570,4.99325,1832.5,1832.1,3.488]
[1743340303773,1.3893,1832.4,1832.2,2.53844]
[1743340303961,1.3893,1832.4,1832.2,1.4466]
[1743340304167,1.3893,1832.4,1832.1,3.488]
[1743340304168,1.3893,1832.4,1832.3,2.53842]
[1743340313079,1.3893,1832.4,1832.3,6.02742]
[1743340314583,2.48107,1832.4,1832.2,1.09184]
[1743340314877,1.09183,1832.3,1832.1,7.7887]
[1743340315079,1.4549,1832.2,1832.1,1.0919]
[1743340315270,5.3908,1832.2,1832.0,3.489]
[1743340315476,1.09195,1832.1,1831.9,0.0081947]
[1743340315774,2.53215,1832.1,1831.9,1.1002347]
[1743340315979,0.7508,1832.0,1831.9,1.1002347]
[1743340316175,2.191,1832.0,1831.9,1.1002347]
[1743340316368,2.191,1832.0,1831.9,1.1002547]
[1743340317576,2.191,1832.0,1831.9,0.0081947]
[1743340319086,2.191,1832.0,1831.9,1.1002547]
[1743340321178,2.191,1832.0,1831.9,0.0081947]
[1743340322686,3.283,1832.0,1831.9,0.0081947]
[1743340323479,2.191,1832.0,1831.9,0.0081947]
[1743340323986,3.283,1832.0,1831.9,0.0081947]
[1743340324175,2.191,1832.0,1831.9,0.0081947]
[1743340324689,2.191,1832.0,1831.9,1.1002547]
[1743340324879,2.191,1832.0,1831.9,4.0131547]
[1743340325185,2.191,1832.0,1831.9,0.0081947]
[1743340328689,3.283,1832.0,1831.9,0.0081947]
[1743340328875,8.12886,1832.0,1831.4,1.09235]
[1743340329081,1.09214,1831.8,1831.5,4.58125]
[1743340329285,2.0921,1831.7,1831.6,1.09224]
[1743340329986,3.18428,1831.7,1831.5,5.9967547]
[1743340330181,2.1172,1831.6,1831.5,4.5894547]
[1743340331988,2.1172,1831.6,1831.5,5.3356547]
[1743340332188,1.3677,1831.6,1831.5,5.3356547]
[1743340332788,1.3677,1831.6,1831.5,6.0321547]
[1743340333590,1.3677,1831.6,1831.5,7.4764547]
[1743340337788,1.3677,1831.6,1831.5,6.7302547]
[1743340342802,0.0081947,1831.8,1831.7,1.09218]
[1743340343099,1.5176947,1831.8,1831.7,1.09218]
[1743340343398,1.5176947,1831.8,1831.7,2.55708]
[1743340352906,1.5176947,1831.8,1831.7,5.76488]
[1743340356802,0.0081947,1831.8,1831.7,5.76488]
[1743340357010,3.2078,1832.2,1832.1,1.09194]
[1743340357209,3.2078,1832.2,1832.1,4.58094]
[1743340358209,4.7033,1832.2,1832.1,4.58094]
[1743340358510,5.44,1832.2,1832.1,4.58094]
[1743340361214,5.44,1832.2,1831.9,3.489]
[1743340361415,1.4028,1832.1,1832.0,1.092]
[1743340361608,1.4028,1832.1,1831.9,3.489]
[1743340361911,0.7089,1832.0,1831.9,3.489]
[1743340362111,0.7089,1832.0,1831.9,4.58106]
[1743340364315,0.7089,1832.0,1831.9,6.08996]
[1743340365411,1.4028,1832.1,1832.0,1.092]
[1743340365913,1.4028,1832.1,1832.0,2.6009]
[1743340369308,1.4028,1832.1,1832.0,1.092]
[1743340370313,1.4028,1832.1,1832.0,3.1825]
[1743340370513,1.4028,1832.1,1832.0,1.092]
[1743340371210,1.4028,1832.1,1832.0,2.4829]
[1743340375321,1.4028,1832.1,1832.0,5.6907]
[1743340375512,1.4028,1832.1,1832.0,4.2998]
[1743340377820,1.4028,1832.1,1832.0,1.092]
[1743340378208,1.4028,1832.1,1832.0,4.2998]
[1743340378611,1.4028,1832.1,1832.0,7.7878]
[1743340384021,1.4028,1832.1,1832.0,9.2425]
[1743340385023,0.0081947,1832.3,1832.2,1.09188]
[1743340385223,0.0081947,1832.3,1832.2,4.29968]
[1743340385425,0.0081947,1832.3,1832.2,6.50808]
[1743340390327,3.2078,1833.2,1832.9,1.09147]
[1743340390531,0.7451,1833.1,1832.9,1.09147]
[1743340391827,2.2179,1833.0,1832.9,1.09147]
[1743340401239,1.4726,1833.0,1832.9,1.09147]
[1743340401531,1.4726,1833.0,1832.9,4.03647]
[1743340401736,1.4726,1833.0,1832.9,7.24427]
[1743340404236,1.4726,1833.0,1832.9,9.99237]
[1743340405541,1.4726,1833.0,1832.9,9.23997]
[1743340405734,1.4726,1833.0,1832.9,7.78527]
[1743340413542,1.4726,1833.0,1832.9,9.23937]
[1743340414846,1.4726,1833.0,1832.9,7.78527]
[1743340422945,1.4726,1833.0,1832.9,8.46777]
[1743340423754,1.4726,1833.0,1832.9,9.22057]
[1743340429766,1.4726,1833.0,1832.9,6.01277]
[1743340430168,1.4726,1833.0,1832.9,7.40877]
[1743340432374,1.4726,1833.0,1832.9,1.09147]
[1743340432563,1.4726,1833.0,1832.9,4.57647]
[1743340432761,1.4726,1833.0,1832.8,4.3074747]
[1743340432967,1.4726,1833.0,1832.9,4.57647]
[1743340446884,1.4726,1833.0,1832.9,6.02017]
[1743340455584,1.4726,1833.0,1832.9,1.09147]
[1743340455790,1.4726,1833.0,1832.8,4.3074747]
[1743340456087,1.4726,1833.0,1832.9,1.09147]
[1743340456490,1.4726,1833.0,1832.9,4.57647]
[1743340459087,1.4726,1833.0,1832.9,6.03547]
[1743340460389,1.4726,1833.0,1832.9,6.72417]
[1743340461091,0.0081947,1833.2,1833.1,1.09135]
[1743340461292,3.18458572,1833.3,1833.2,1.09129]
[1743340462385,4.68688572,1833.3,1833.2,1.09129]
[1743340463397,4.68688572,1833.3,1832.8,5.4405947]
[1743340463586,1.5023,1833.2,1833.1,1.09133]
[1743340463788,1.47089102,1833.2,1833.1,1.09133]
[1743340464993,2.56218102,1833.2,1833.1,1.09133]
[1743340465190,1.47089102,1833.2,1833.1,1.09133]
[1743340466394,2.56218102,1833.2,1833.1,1.09133]
[1743340466591,1.47089102,1833.2,1833.1,1.09133]
[1743340466785,2.56218102,1833.2,1833.1,1.09133]
[1743340466986,2.56218102,1833.2,1833.0,1.0995447]
[1743340467184,1.4584,1833.1,1833.0,1.0995447]
[1743340467395,1.4584,1833.1,1833.0,1.06813572]
[1743340468391,2.54979,1833.1,1832.9,4.3074447]
[1743340468692,2.54979,1833.1,1832.9,1.0996447]
[1743340468897,1.4584,1833.1,1833.0,1.09141]
[1743340470692,2.54977,1833.1,1832.9,1.0996247]
[1743340473592,1.09141,1833.0,1832.9,0.0081947]
[1743340475002,4.29921,1833.0,1832.9,0.0081947]
[1743340477403,5.80031,1833.0,1832.9,0.0081947]
[1743340483705,2.59251,1833.0,1832.9,0.0081947]
[1743340485506,5.80031,1833.0,1832.9,0.0081947]
[1743340488005,2.59251,1833.0,1832.9,0.0081947]
[1743340489010,2.59251,1833.0,1832.9,1.0996647]
[1743340489311,2.59251,1833.0,1832.9,0.0081947]
[1743340490202,1.5011,1833.0,1832.9,1.0996647]
[1743340490398,1.5011,1833.0,1832.9,2.4819647]
[1743340494212,2.59251,1833.0,1832.9,2.4819647]
[1743340495515,2.59251,1833.0,1832.9,1.0996647]
[1743340499006,2.59251,1833.0,1832.9,0.0081947]
[1743340499603,2.59251,1833.0,1832.9,1.0996647]
[1743340500404,2.59251,1833.0,1832.9,0.0081947]
[1743340501713,2.59251,1833.0,1832.9,1.0996647]
[1743340504625,2.59251,1833.0,1832.9,0.0081947]
[1743340504823,2.59251,1833.0,1832.9,1.0996647]
[1743340505822,1.5011,1833.0,1832.9,1.0996647]
[1743340506623,1.5011,1833.0,1832.9,2.5330647]
[1743340507118,0.0081947,1833.4,1832.9,3.9415947]
[1743340507329,0.0081947,1833.4,1833.3,4.29903]
[1743340507725,0.0081947,1833.4,1833.3,4.57523]
[1743340507917,1.5046947,1833.4,1833.3,4.57523]
[1743340508118,1.5046947,1833.4,1833.3,6.04413]
[1743340508319,0.0081947,1833.4,1833.3,6.04413]
[1743340508823,0.0081947,1833.4,1833.3,9.25193]
[1743340518329,0.0081947,1833.4,1833.3,6.04413]
[1743340518528,0.0081947,1833.4,1833.3,9.25193]
[1743340520735,0.0081947,1833.4,1833.3,9.69531779]
[1743340522638,0.0081947,1833.4,1833.3,9.25193]
[1743340525234,0.0081947,1833.4,1833.3,9.68053471]
[1743340526035,0.0081947,1833.4,1833.3,9.25193]
[1743340526632,0.0081947,1833.4,1833.3,9.68547779]
[1743340527233,0.0081947,1833.4,1833.3,9.25193]
[1743340527434,0.0081947,1833.4,1833.3,11.75193]
[1743340530340,0.0081947,1833.4,1833.3,12.18393363]
[1743340531941,0.0081947,1833.4,1833.3,6.19993363]
[1743340532146,0.0081947,1833.4,1833.3,9.68193363]
[1743340532543,0.0081947,1833.4,1833.3,8.21303363]
[1743340532949,0.0081947,1833.4,1833.3,4.29903]
[1743340533143,0.0081947,1833.4,1833.3,7.78103]
[1743340535046,0.0081947,1833.4,1833.3,4.29903]
[1743340535244,0.0081947,1833.4,1833.3,7.78103]
[1743340535450,1.4204947,1833.4,1833.3,7.78103]
[1743340540344,1.4204947,1833.4,1833.3,4.57323]
[1743340540544,1.4204947,1833.4,1833.3,7.78103]
[1743340549669,1.4204947,1833.4,1833.3,4.57323]
[1743340550763,1.09124,1833.3,1833.1,3.2078]
[1743340551071,1.4204947,1833.4,1832.9,1.0996347]
[1743340551072,6.46451,1833.2,1832.9,1.0996347]
[1743340551274,1.4835,1833.1,1832.9,4.5816347]
[1743340552267,1.4835,1833.1,1833.0,1.09141]
[1743340558571,2.57487,1833.1,1832.9,3.4901947]
[1743340558767,1.4835,1833.1,1833.0,1.09141]
[1743340558967,5.69341,1833.2,1833.0,1.09141]
[1743340559168,5.66200102,1833.2,1833.0,1.09141]
[1743340560172,4.57069102,1833.2,1833.1,1.09135]
[1743340560467,5.66198102,1833.2,1832.9,3.4901947]
[1743340560664,5.66198102,1833.2,1833.0,1.09135]
[1743340560866,5.63057204,1833.2,1833.0,1.09135]
[1743340561468,5.63057204,1833.2,1833.1,1.09135]
[1743340562172,1.33148204,1833.2,1833.1,1.09135]
[1743340568583,2.42277204,1833.2,1833.1,1.09135]
[1743340568785,1.33148204,1833.2,1833.1,1.09135]
[1743340570780,0.61908204,1833.2,1833.1,1.09135]
[1743340572387,1.71037204,1833.2,1833.1,1.09135]
[1743340574087,1.09135,1833.1,1833.0,1.4007]
[1743340574279,1.09135,1833.1,1833.0,1.36929102]
[1743340574487,1.09141,1833.0,1832.9,0.0081947]
[1743340575486,4.29921,1833.0,1832.9,0.0081947]
[1743340577774,4.99481,1833.0,1832.9,0.0081947]
[1743340580787,1.4054,1833.1,1832.9,0.0081947]
[1743340581086,2.49675,1833.1,1832.9,1.0996347]
[1743340581481,1.3975,1833.0,1832.9,1.0996347]
[1743340581882,1.3975,1833.0,1832.9,1.0996647]
[1743340582487,2.48891,1833.0,1832.9,0.0081947]
[1743340583582,1.3975,1833.0,1832.9,1.0996647]
[1743340584425,2.48891,1833.0,1832.9,1.0996647]
[1743340584807,2.48891,1833.0,1832.9,0.0081947]
[1743340584998,2.48891,1833.0,1832.9,1.0996647]
[1743340585699,1.3975,1833.0,1832.9,1.0996647]
[1743340586192,1.3975,1833.0,1832.9,2.5030647]
[1743340586693,2.48891,1833.0,1832.9,2.5030647]
[1743340586995,2.48891,1833.0,1832.9,1.0996647]
[1743340587695,1.3975,1833.0,1832.9,1.0996647]
[1743340588097,1.3975,1833.0,1832.9,2.5968647]
[1743340592218,1.3975,1833.0,1832.9,1.0996647]
[1743340592719,1.3975,1833.0,1832.9,2.5464647]
[1743340595921,0.61908204,1833.2,1833.1,1.09135]
[1743340596117,1.34769102,1833.3,1833.2,1.09129]
[1743340596422,1.34769102,1833.3,1833.2,4.03499]
[1743340597415,1.34769102,1833.3,1833.2,3.28349]
[1743340597711,1.34769102,1833.3,1833.2,4.03499]
[1743340599209,3.2159947,1833.4,1833.3,1.09123]
[1743340599210,0.0081947,1833.4,1833.3,1.09123]
[1743340599407,0.0081947,1833.4,1833.3,5.67983]
[1743340600206,1.4996,1833.7,1833.6,1.09105]
[1743340600397,1.4996,1833.7,1833.6,4.57205]
[1743340601003,3.2078,1833.8,1833.7,1.09099]
[1743340601201,4.7074,1833.8,1833.7,1.09099]
[1743340601508,4.7074,1833.8,1833.7,2.47179]
[1743340601994,1.4996,1833.8,1833.7,2.47179]
[1743340603601,1.4996,1833.8,1833.7,3.18539]
[1743340606408,1.4996,1833.8,1833.6,3.481]
[1743340606611,1.4076,1833.7,1833.6,4.57205]
[1743340613005,0.6915,1833.7,1833.6,4.57205]
[1743340613313,1.4996,1833.8,1833.7,1.09099]
[1743340616006,2.59054,1833.8,1833.6,5.07105]
[1743340616207,1.4996,1833.8,1833.6,3.98]
[1743340616411,1.431,1833.7,1833.6,5.07105]
[1743340618307,2.52199,1833.7,1833.6,1.59105]
[1743340618511,1.431,1833.7,1833.6,1.59105]
[1743340619111,2.52199,1833.7,1833.6,1.59105]
[1743340619405,1.431,1833.7,1833.6,1.59105]
[1743340622013,2.52199,1833.7,1833.6,1.59105]
[1743340622609,1.431,1833.7,1833.6,1.59105]
[1743340623609,2.52199,1833.7,1833.6,1.59105]
[1743340623816,2.52199,1833.7,1833.6,0.5]
[1743340627815,2.52199,1833.7,1833.6,1.59105]
[1743340628416,2.52199,1833.7,1833.6,0.5]
[1743340630909,2.72765,1833.6,1833.2,3.48]
[1743340631217,1.09129,1833.2,1833.1,6.6878]
[1743340631415,3.2078,1833.4,1833.2,1.09129]
[1743340631715,1.4456,1833.3,1833.2,1.09129]
[1743340631918,2.8366,1833.3,1833.2,1.09129]
[1743340632815,2.1546,1833.3,1833.2,1.09129]
[1743340633017,2.1546,1833.3,1833.2,3.33019]
[1743340633217,1.4456,1833.3,1833.2,3.33019]
[1743340635707,1.4456,1833.3,1833.2,2.58029]
[1743340635916,2.1502,1833.3,1833.2,2.58029]
[1743340636216,1.4456,1833.3,1833.2,2.58029]
[1743340636721,0.7046,1833.7,1833.2,3.989]
[1743340637022,0.7312,1833.8,1833.3,8.08268]
[1743340637212,2.1833,1833.8,1833.7,1.09099]
[1743340637522,2.1833,1833.8,1833.7,4.57099]
[1743340637817,1.4521,1833.8,1833.7,4.57099]
[1743340638418,1.4521,1833.8,1833.7,7.77879]
[1743340638609,1.4521,1833.8,1833.7,9.94289]
[1743340645823,1.4521,1833.8,1833.7,9.21729]
[1743340646023,2.1597,1833.8,1833.7,7.77779]
[1743340646324,2.1597,1833.8,1833.7,3.2078]
[1743340646517,2.1597,1833.8,1833.7,4.29879]
[1743340650419,2.1597,1833.8,1833.5,1.09107]
[1743340650420,1.09102,1833.7,1833.5,1.09107]
[1743340650624,3.16043,1833.7,1833.5,1.09111]
[1743340650814,3.2078,1833.6,1833.5,1.09111]
[1743340651020,5.67451,1833.6,1833.4,1.09112]
[1743340651221,2.1285,1833.5,1833.4,1.09112]
[1743340656022,2.1285,1833.5,1833.4,2.59912]
[1743340656333,2.1285,1833.5,1833.4,1.09117]
[1743340656522,3.21961,1833.5,1833.3,4.57019]
[1743340656828,2.1493,1833.4,1833.3,4.57019]
[1743340660623,2.1493,1833.4,1833.3,6.01449]
[1743340665735,2.1493,1833.4,1833.3,4.57019]
[1743340667033,2.1493,1833.4,1833.3,5.94929]
[1743340669341,1.4261,1833.4,1833.3,5.94929]
[1743340670844,0.6966,1833.6,1833.5,1.09111]
[1743340671141,2.1552,1833.6,1833.5,1.09111]
[1743340671541,2.1552,1833.6,1833.5,2.58721]
[1743340673746,3.2078,1833.7,1833.6,1.09105]
[1743340674045,4.6676,1833.7,1833.6,5.92965]
[1743340674944,1.4598,1833.7,1833.6,5.92965]
[1743340677547,2.1502,1833.7,1833.6,5.92965]
[1743340680556,2.1502,1833.7,1833.6,1.09105]
[1743340683050,2.1502,1833.7,1833.6,2.49255]
[1743340691054,1.4598,1833.7,1833.6,2.49255]
[1743340691255,0.9598,1833.7,1833.6,2.49255]
[1743340692857,0.6959947,1833.9,1833.8,1.09093]
[1743340693059,0.6959947,1833.9,1833.8,4.56993]
[1743340693654,0.6959947,1833.9,1833.8,6.04723]
[1743340701362,0.0081947,1833.9,1833.8,7.52563]
[1743340701660,0.0081947,1833.9,1833.8,10.02563]
[1743340703062,0.0081947,1833.9,1833.8,37.62563]
[1743340705862,0.0081947,1833.9,1833.8,38.0713362]
[1743340706059,4.7e-06,1833.9,1833.8,45.21698208]
[1743340707062,1.5009,1834.3,1834.2,1.09069]
[1743340707258,1.5009,1834.3,1834.2,7.75889748]
[1743340707559,23.49545894,1834.9,1834.8,1.09034]
[1743340708153,24.99635894,1834.9,1834.8,1.09034]
[1743340708563,1.5009,1834.9,1834.8,1.09034]
[1743340708766,2.2387,1834.9,1834.8,1.09034]
[1743340710862,2.2387,1834.9,1834.8,2.59114]
[1743340712470,0.0081947,1835.0,1834.9,1.09028]
[1743340712660,0.0081947,1835.0,1834.9,7.77508]
[1743340717063,0.0081947,1835.0,1834.9,9.16068]
[1743340725376,0.0081947,1835.0,1834.9,5.95288]
[1743340725673,0.0081947,1835.0,1834.9,9.16068]
[1743340726382,0.0081947,1835.0,1834.9,7.77508]
[1743340727571,0.7288947,1835.0,1834.9,7.77508]
[1743340728568,0.7288947,1835.0,1834.9,9.19338]
[1743340730573,0.0081947,1835.0,1834.9,9.19338]
[1743340731763,0.0081947,1835.0,1834.9,11.69338]
[1743340733681,0.0081947,1835.0,1834.9,9.19338]